{"text_format":"3","workbook":"xlsx","n_sheets":2,"sheets":["Budżet ślubny","Szczegóły budżetu"],"not_rendered":{"charts":1,"images":1,"defined_names":2},"read":"whole","date_system":"1900"}

{"sheet":"Budżet ślubny","index":0,"n_rows":16,"n_cols":16,"rows_kept":16,"merged":[[1,1,1,5]]}
[{"$nulls":6}," "]
[null,"MONIKA + DANIEL\nŚLUB"]
[{"$nulls":7}," "]
[]
[null,"KATEGORIA","SZACOWANY KOSZT","KOSZT RZECZYWISTY","ODCHYLENIE","% BUDŻETU",{"$nulls":3},"Nieposortowane","Szacowane koszty","Koszty rzeczywiste","Szacowany koszt — wartość rangi","Ranga","Nr","Posortowane"]
[null,{"$f":"P6","v":"Wesele"},{"$f":"VLOOKUP(TBL_Podsumowanie[[#This Row],[KATEGORIA]],TBL_DaneKlasyfikacji,2,FALSE)","v":{"v":14500,"d":"14,500 zł"}},{"$f":"IF(VLOOKUP(TBL_Podsumowanie[[#This Row],[KATEGORIA]],TBL_DaneKlasyfikacji,3,FALSE)=0,\"\",VLOOKUP(TBL_Podsumowanie[[#This Row],[KATEGORIA]],TBL_DaneKlasyfikacji,3,FALSE))","v":{"v":12800,"d":"12,800 zł"}},{"$f":"IF(OR(TBL_Podsumowanie[[#This Row],[SZACOWANY KOSZT]]=\"\",TBL_Podsumowanie[[#This Row],[KOSZT RZECZYWISTY]]=\"\"),\"\",TBL_Podsumowanie[[#This Row],[SZACOWANY KOSZT]]-TBL_Podsumowanie[[#This Row],[KOSZT RZECZYWISTY]])","v":{"v":1700,"d":"1,700 zł"}},{"$f":"TBL_Podsumowanie[[#This Row],[SZACOWANY KOSZT]]/SUM(TBL_Podsumowanie[SZACOWANY KOSZT])","v":{"v":0.48739495798319327,"d":"48.7%"}},{"$nulls":3},"Wesele",{"$f":"TBL_Przyjęcie[[#Totals],[SZACOWANE]]","v":14500},{"$f":"TBL_Przyjęcie[[#Totals],[RZECZYWISTE]]","v":12800},{"$f":"K6-O6/100","v":14499.99},{"$f":"_xlfn.RANK.AVG(M6,$M$6:$M$15)","v":1},1,{"$f":"INDEX(TBL_DaneKlasyfikacji,MATCH(O6,$N$6:$N$15,0),1)","v":"Wesele"}]
[null,{"$f":"P7","v":"Ubiór"},{"$f":"VLOOKUP(TBL_Podsumowanie[[#This Row],[KATEGORIA]],TBL_DaneKlasyfikacji,2,FALSE)","v":{"v":4000,"d":"4,000 zł"}},{"$f":"IF(VLOOKUP(TBL_Podsumowanie[[#This Row],[KATEGORIA]],TBL_DaneKlasyfikacji,3,FALSE)=0,\"\",VLOOKUP(TBL_Podsumowanie[[#This Row],[KATEGORIA]],TBL_DaneKlasyfikacji,3,FALSE))","v":{"v":2900,"d":"2,900 zł"}},{"$f":"IF(OR(TBL_Podsumowanie[[#This Row],[SZACOWANY KOSZT]]=\"\",TBL_Podsumowanie[[#This Row],[KOSZT RZECZYWISTY]]=\"\"),\"\",TBL_Podsumowanie[[#This Row],[SZACOWANY KOSZT]]-TBL_Podsumowanie[[#This Row],[KOSZT RZECZYWISTY]])","v":{"v":1100,"d":"1,100 zł"}},{"$f":"TBL_Podsumowanie[[#This Row],[SZACOWANY KOSZT]]/SUM(TBL_Podsumowanie[SZACOWANY KOSZT])","v":{"v":0.13445378151260504,"d":"13.4%"}},{"$nulls":3},"Ubiór",{"$f":"TBL_Strój[[#Totals],[SZACOWANE]]","v":4000},{"$f":"TBL_Strój[[#Totals],[RZECZYWISTE]]","v":2900},{"$f":"K7-O7/100","v":3999.98},2,2,"Ubiór"]
[null,"Kwiaty i dekoracje",{"$f":"VLOOKUP(TBL_Podsumowanie[[#This Row],[KATEGORIA]],TBL_DaneKlasyfikacji,2,FALSE)","v":{"v":3000,"d":"3,000 zł"}},{"$f":"IF(VLOOKUP(TBL_Podsumowanie[[#This Row],[KATEGORIA]],TBL_DaneKlasyfikacji,3,FALSE)=0,\"\",VLOOKUP(TBL_Podsumowanie[[#This Row],[KATEGORIA]],TBL_DaneKlasyfikacji,3,FALSE))","v":""},{"$f":"IF(OR(TBL_Podsumowanie[[#This Row],[SZACOWANY KOSZT]]=\"\",TBL_Podsumowanie[[#This Row],[KOSZT RZECZYWISTY]]=\"\"),\"\",TBL_Podsumowanie[[#This Row],[SZACOWANY KOSZT]]-TBL_Podsumowanie[[#This Row],[KOSZT RZECZYWISTY]])","v":""},{"$f":"TBL_Podsumowanie[[#This Row],[SZACOWANY KOSZT]]/SUM(TBL_Podsumowanie[SZACOWANY KOSZT])","v":{"v":0.10084033613445378,"d":"10.1%"}},{"$nulls":3},"Kwiaty i dekoracje",{"$f":"TBL_KwiatyOrazDekoracje[[#Totals],[SZACOWANE]]","v":3000},{"$f":"TBL_KwiatyOrazDekoracje[[#Totals],[RZECZYWISTE]]","v":0},2999.97,3,3,"Kwiaty i dekoracje"]
[null,"Fotografie i klipy wideo",{"$f":"VLOOKUP(TBL_Podsumowanie[[#This Row],[KATEGORIA]],TBL_DaneKlasyfikacji,2,FALSE)","v":{"v":2500,"d":"2,500 zł"}},{"$f":"IF(VLOOKUP(TBL_Podsumowanie[[#This Row],[KATEGORIA]],TBL_DaneKlasyfikacji,3,FALSE)=0,\"\",VLOOKUP(TBL_Podsumowanie[[#This Row],[KATEGORIA]],TBL_DaneKlasyfikacji,3,FALSE))","v":""},{"$f":"IF(OR(TBL_Podsumowanie[[#This Row],[SZACOWANY KOSZT]]=\"\",TBL_Podsumowanie[[#This Row],[KOSZT RZECZYWISTY]]=\"\"),\"\",TBL_Podsumowanie[[#This Row],[SZACOWANY KOSZT]]-TBL_Podsumowanie[[#This Row],[KOSZT RZECZYWISTY]])","v":""},{"$f":"TBL_Podsumowanie[[#This Row],[SZACOWANY KOSZT]]/SUM(TBL_Podsumowanie[SZACOWANY KOSZT])","v":{"v":0.08403361344537816,"d":"8.4%"}},{"$nulls":3},"Muzyka",{"$f":"TBL_Muzyka[[#Totals],[SZACOWANE]]","v":1800},{"$f":"TBL_Muzyka[[#Totals],[RZECZYWISTE]]","v":0},1799.96,5,4,"Fotografie i klipy wideo"]
[null,"Muzyka",{"$f":"VLOOKUP(TBL_Podsumowanie[[#This Row],[KATEGORIA]],TBL_DaneKlasyfikacji,2,FALSE)","v":{"v":1800,"d":"1,800 zł"}},{"$f":"IF(VLOOKUP(TBL_Podsumowanie[[#This Row],[KATEGORIA]],TBL_DaneKlasyfikacji,3,FALSE)=0,\"\",VLOOKUP(TBL_Podsumowanie[[#This Row],[KATEGORIA]],TBL_DaneKlasyfikacji,3,FALSE))","v":""},{"$f":"IF(OR(TBL_Podsumowanie[[#This Row],[SZACOWANY KOSZT]]=\"\",TBL_Podsumowanie[[#This Row],[KOSZT RZECZYWISTY]]=\"\"),\"\",TBL_Podsumowanie[[#This Row],[SZACOWANY KOSZT]]-TBL_Podsumowanie[[#This Row],[KOSZT RZECZYWISTY]])","v":""},{"$f":"TBL_Podsumowanie[[#This Row],[SZACOWANY KOSZT]]/SUM(TBL_Podsumowanie[SZACOWANY KOSZT])","v":{"v":0.06050420168067227,"d":"6.1%"}},{"$nulls":3},"Fotografie i klipy wideo",{"$f":"TBL_FotografieOrazWideo[[#Totals],[SZACOWANE]]","v":2500},{"$f":"TBL_FotografieOrazWideo[[#Totals],[RZECZYWISTE]]","v":0},2499.95,4,5,"Muzyka"]
[null,"Usługi specjalne i prezenty",{"$f":"VLOOKUP(TBL_Podsumowanie[[#This Row],[KATEGORIA]],TBL_DaneKlasyfikacji,2,FALSE)","v":{"v":1100,"d":"1,100 zł"}},{"$f":"IF(VLOOKUP(TBL_Podsumowanie[[#This Row],[KATEGORIA]],TBL_DaneKlasyfikacji,3,FALSE)=0,\"\",VLOOKUP(TBL_Podsumowanie[[#This Row],[KATEGORIA]],TBL_DaneKlasyfikacji,3,FALSE))","v":""},{"$f":"IF(OR(TBL_Podsumowanie[[#This Row],[SZACOWANY KOSZT]]=\"\",TBL_Podsumowanie[[#This Row],[KOSZT RZECZYWISTY]]=\"\"),\"\",TBL_Podsumowanie[[#This Row],[SZACOWANY KOSZT]]-TBL_Podsumowanie[[#This Row],[KOSZT RZECZYWISTY]])","v":""},{"$f":"TBL_Podsumowanie[[#This Row],[SZACOWANY KOSZT]]/SUM(TBL_Podsumowanie[SZACOWANY KOSZT])","v":{"v":0.03697478991596639,"d":"3.7%"}},{"$nulls":3},"Usługi specjalne i prezenty",{"$f":"TBL_Upominki[[#Totals],[SZACOWANE]]","v":1100},{"$f":"TBL_Upominki[[#Totals],[RZECZYWISTE]]","v":0},1099.94,6,6,"Usługi specjalne i prezenty"]
[null,{"$f":"P12","v":"Obrączki ślubne"},{"$f":"VLOOKUP(TBL_Podsumowanie[[#This Row],[KATEGORIA]],TBL_DaneKlasyfikacji,2,FALSE)","v":{"v":1100,"d":"1,100 zł"}},{"$f":"IF(VLOOKUP(TBL_Podsumowanie[[#This Row],[KATEGORIA]],TBL_DaneKlasyfikacji,3,FALSE)=0,\"\",VLOOKUP(TBL_Podsumowanie[[#This Row],[KATEGORIA]],TBL_DaneKlasyfikacji,3,FALSE))","v":""},{"$f":"IF(OR(TBL_Podsumowanie[[#This Row],[SZACOWANY KOSZT]]=\"\",TBL_Podsumowanie[[#This Row],[KOSZT RZECZYWISTY]]=\"\"),\"\",TBL_Podsumowanie[[#This Row],[SZACOWANY KOSZT]]-TBL_Podsumowanie[[#This Row],[KOSZT RZECZYWISTY]])","v":""},{"$f":"TBL_Podsumowanie[[#This Row],[SZACOWANY KOSZT]]/SUM(TBL_Podsumowanie[SZACOWANY KOSZT])","v":{"v":0.03697478991596639,"d":"3.7%"}},{"$nulls":3},"Ceremonia",{"$f":"TBL_CeremoniaŚlubna[[#Totals],[SZACOWANE]]","v":800},{"$f":"TBL_CeremoniaŚlubna[[#Totals],[RZECZYWISTE]]","v":0},799.93,8,7,"Obrączki ślubne"]
[null,"Ceremonia",{"$f":"VLOOKUP(TBL_Podsumowanie[[#This Row],[KATEGORIA]],TBL_DaneKlasyfikacji,2,FALSE)","v":{"v":800,"d":"800 zł"}},{"$f":"IF(VLOOKUP(TBL_Podsumowanie[[#This Row],[KATEGORIA]],TBL_DaneKlasyfikacji,3,FALSE)=0,\"\",VLOOKUP(TBL_Podsumowanie[[#This Row],[KATEGORIA]],TBL_DaneKlasyfikacji,3,FALSE))","v":""},{"$f":"IF(OR(TBL_Podsumowanie[[#This Row],[SZACOWANY KOSZT]]=\"\",TBL_Podsumowanie[[#This Row],[KOSZT RZECZYWISTY]]=\"\"),\"\",TBL_Podsumowanie[[#This Row],[SZACOWANY KOSZT]]-TBL_Podsumowanie[[#This Row],[KOSZT RZECZYWISTY]])","v":""},{"$f":"TBL_Podsumowanie[[#This Row],[SZACOWANY KOSZT]]/SUM(TBL_Podsumowanie[SZACOWANY KOSZT])","v":{"v":0.02689075630252101,"d":"2.7%"}},{"$nulls":3},"Papeteria",{"$f":"TBL_Papeteria[[#Totals],[SZACOWANE]]","v":500},{"$f":"TBL_Papeteria[[#Totals],[RZECZYWISTE]]","v":0},499.92,9,8,"Ceremonia"]
[null,"Papeteria",{"$f":"VLOOKUP(TBL_Podsumowanie[[#This Row],[KATEGORIA]],TBL_DaneKlasyfikacji,2,FALSE)","v":{"v":500,"d":"500 zł"}},{"$f":"IF(VLOOKUP(TBL_Podsumowanie[[#This Row],[KATEGORIA]],TBL_DaneKlasyfikacji,3,FALSE)=0,\"\",VLOOKUP(TBL_Podsumowanie[[#This Row],[KATEGORIA]],TBL_DaneKlasyfikacji,3,FALSE))","v":""},{"$f":"IF(OR(TBL_Podsumowanie[[#This Row],[SZACOWANY KOSZT]]=\"\",TBL_Podsumowanie[[#This Row],[KOSZT RZECZYWISTY]]=\"\"),\"\",TBL_Podsumowanie[[#This Row],[SZACOWANY KOSZT]]-TBL_Podsumowanie[[#This Row],[KOSZT RZECZYWISTY]])","v":""},{"$f":"TBL_Podsumowanie[[#This Row],[SZACOWANY KOSZT]]/SUM(TBL_Podsumowanie[SZACOWANY KOSZT])","v":{"v":0.01680672268907563,"d":"1.7%"}},{"$nulls":3},"Obrączki ślubne",{"$f":"TBL_Obrączki[[#Totals],[SZACOWANE]]","v":1100},{"$f":"TBL_Obrączki[[#Totals],[RZECZYWISTE]]","v":0},1099.91,7,9,"Papeteria"]
[null,"Transport",{"$f":"VLOOKUP(TBL_Podsumowanie[[#This Row],[KATEGORIA]],TBL_DaneKlasyfikacji,2,FALSE)","v":{"v":450,"d":"450 zł"}},{"$f":"IF(VLOOKUP(TBL_Podsumowanie[[#This Row],[KATEGORIA]],TBL_DaneKlasyfikacji,3,FALSE)=0,\"\",VLOOKUP(TBL_Podsumowanie[[#This Row],[KATEGORIA]],TBL_DaneKlasyfikacji,3,FALSE))","v":""},{"$f":"IF(OR(TBL_Podsumowanie[[#This Row],[SZACOWANY KOSZT]]=\"\",TBL_Podsumowanie[[#This Row],[KOSZT RZECZYWISTY]]=\"\"),\"\",TBL_Podsumowanie[[#This Row],[SZACOWANY KOSZT]]-TBL_Podsumowanie[[#This Row],[KOSZT RZECZYWISTY]])","v":""},{"$f":"TBL_Podsumowanie[[#This Row],[SZACOWANY KOSZT]]/SUM(TBL_Podsumowanie[SZACOWANY KOSZT])","v":{"v":0.015126050420168067,"d":"1.5%"}},{"$nulls":3},"Transport",{"$f":"TBL_Transport[[#Totals],[SZACOWANE]]","v":450},{"$f":"TBL_Transport[[#Totals],[RZECZYWISTE]]","v":0},449.9,10,10,"Transport"]
[null,"Suma",{"$f":"SUBTOTAL(109,TBL_Podsumowanie[SZACOWANY KOSZT])","v":{"v":29750,"d":"29,750 zł"}},{"$f":"SUBTOTAL(109,TBL_Podsumowanie[KOSZT RZECZYWISTY])","v":{"v":15700,"d":"15,700 zł"}},{"$f":"TBL_Podsumowanie[[#Totals],[SZACOWANY KOSZT]]-TBL_Podsumowanie[[#Totals],[KOSZT RZECZYWISTY]]","v":{"v":14050,"d":"14,050 zł"}},{"$f":"SUBTOTAL(109,TBL_Podsumowanie[% BUDŻETU])","v":{"v":1,"d":"100%"}}]

{"sheet":"Szczegóły budżetu","index":1,"n_rows":91,"n_cols":6,"rows_kept":91}
[{"$nulls":5}," "]
[null,"SZCZEGÓŁY BUDŻETU"]
[]
[null,"PRZYJĘCIE","SZACOWANE","RZECZYWISTE","ODCHYLENIE"]
[null,"Miejsce i czynsze",{"v":8000,"d":"8,000.00 zł"},{"v":7800,"d":"7,800.00 zł"},{"$f":"IF(OR(TBL_Przyjęcie[[#This Row],[SZACOWANE]]=\"\",TBL_Przyjęcie[[#This Row],[RZECZYWISTE]]=\"\"),\"\",TBL_Przyjęcie[[#This Row],[SZACOWANE]]-TBL_Przyjęcie[[#This Row],[RZECZYWISTE]])","v":{"v":200,"d":"200.00 zł"}}]
[null,"Żywność i obsługa",{"v":4000,"d":"4,000.00 zł"},{"v":4200,"d":"4,200.00 zł"},{"$f":"IF(OR(TBL_Przyjęcie[[#This Row],[SZACOWANE]]=\"\",TBL_Przyjęcie[[#This Row],[RZECZYWISTE]]=\"\"),\"\",TBL_Przyjęcie[[#This Row],[SZACOWANE]]-TBL_Przyjęcie[[#This Row],[RZECZYWISTE]])","v":{"v":-200,"d":"-200.00 zł"}}]
[null,"Napoje",{"v":1000,"d":"1,000.00 zł"},{"v":800,"d":"800.00 zł"},{"$f":"IF(OR(TBL_Przyjęcie[[#This Row],[SZACOWANE]]=\"\",TBL_Przyjęcie[[#This Row],[RZECZYWISTE]]=\"\"),\"\",TBL_Przyjęcie[[#This Row],[SZACOWANE]]-TBL_Przyjęcie[[#This Row],[RZECZYWISTE]])","v":{"v":200,"d":"200.00 zł"}}]
[null,"Ciasto",{"v":1000,"d":"1,000.00 zł"},null,{"$f":"IF(OR(TBL_Przyjęcie[[#This Row],[SZACOWANE]]=\"\",TBL_Przyjęcie[[#This Row],[RZECZYWISTE]]=\"\"),\"\",TBL_Przyjęcie[[#This Row],[SZACOWANE]]-TBL_Przyjęcie[[#This Row],[RZECZYWISTE]])","v":""}]
[null,"Opłaty różne",{"v":500,"d":"500.00 zł"},null,{"$f":"IF(OR(TBL_Przyjęcie[[#This Row],[SZACOWANE]]=\"\",TBL_Przyjęcie[[#This Row],[RZECZYWISTE]]=\"\"),\"\",TBL_Przyjęcie[[#This Row],[SZACOWANE]]-TBL_Przyjęcie[[#This Row],[RZECZYWISTE]])","v":""}]
[null,"WESELE ŁĄCZNIE",{"$f":"SUBTOTAL(109,TBL_Przyjęcie[SZACOWANE])","v":{"v":14500,"d":"14,500.00 zł"}},{"$f":"SUBTOTAL(109,TBL_Przyjęcie[RZECZYWISTE])","v":{"v":12800,"d":"12,800.00 zł"}},{"$f":"TBL_Przyjęcie[[#Totals],[SZACOWANE]]-TBL_Przyjęcie[[#Totals],[RZECZYWISTE]]","v":{"v":1700,"d":"1,700.00 zł"}}]
[]
[]
[null,"STRÓJ","SZACOWANE","RZECZYWISTE","ODCHYLENIE"]
[null,"Smoking, garnitur i/lub suknia",{"v":3000,"d":"3,000.00 zł"},{"v":2900,"d":"2,900.00 zł"},{"$f":"IF(OR(TBL_Strój[[#This Row],[SZACOWANE]]=\"\",TBL_Strój[[#This Row],[RZECZYWISTE]]=\"\"),\"\",TBL_Strój[[#This Row],[SZACOWANE]]-TBL_Strój[[#This Row],[RZECZYWISTE]])","v":{"v":100,"d":"100.00 zł"}}]
[null,"Zmiany",{"v":100,"d":"100.00 zł"},null,{"$f":"IF(OR(TBL_Strój[[#This Row],[SZACOWANE]]=\"\",TBL_Strój[[#This Row],[RZECZYWISTE]]=\"\"),\"\",TBL_Strój[[#This Row],[SZACOWANE]]-TBL_Strój[[#This Row],[RZECZYWISTE]])","v":""}]
[null,"Ozdoba głowy i welon",{"v":200,"d":"200.00 zł"},null,{"$f":"IF(OR(TBL_Strój[[#This Row],[SZACOWANE]]=\"\",TBL_Strój[[#This Row],[RZECZYWISTE]]=\"\"),\"\",TBL_Strój[[#This Row],[SZACOWANE]]-TBL_Strój[[#This Row],[RZECZYWISTE]])","v":""}]
[null,"Akcesoria",{"v":100,"d":"100.00 zł"},null,{"$f":"IF(OR(TBL_Strój[[#This Row],[SZACOWANE]]=\"\",TBL_Strój[[#This Row],[RZECZYWISTE]]=\"\"),\"\",TBL_Strój[[#This Row],[SZACOWANE]]-TBL_Strój[[#This Row],[RZECZYWISTE]])","v":""}]
[null,"Włosy i makijaż",{"v":500,"d":"500.00 zł"},null,{"$f":"IF(OR(TBL_Strój[[#This Row],[SZACOWANE]]=\"\",TBL_Strój[[#This Row],[RZECZYWISTE]]=\"\"),\"\",TBL_Strój[[#This Row],[SZACOWANE]]-TBL_Strój[[#This Row],[RZECZYWISTE]])","v":""}]
[null,"Opłaty różne",{"v":100,"d":"100.00 zł"},null,{"$f":"IF(OR(TBL_Strój[[#This Row],[SZACOWANE]]=\"\",TBL_Strój[[#This Row],[RZECZYWISTE]]=\"\"),\"\",TBL_Strój[[#This Row],[SZACOWANE]]-TBL_Strój[[#This Row],[RZECZYWISTE]])","v":""}]
[null,"STROJE ŁĄCZNIE",{"$f":"SUBTOTAL(109,TBL_Strój[SZACOWANE])","v":{"v":4000,"d":"4,000.00 zł"}},{"$f":"SUBTOTAL(109,TBL_Strój[RZECZYWISTE])","v":{"v":2900,"d":"2,900.00 zł"}},{"$f":"TBL_Strój[[#Totals],[SZACOWANE]]-TBL_Strój[[#Totals],[RZECZYWISTE]]","v":{"v":1100,"d":"1,100.00 zł"}}]
[]
[]
[null,"KWIATY ORAZ DEKORACJE","SZACOWANE","RZECZYWISTE","ODCHYLENIE"]
[null,"Ustalenia dotyczące kwiatów dla ceremonii",{"v":1000,"d":"1,000.00 zł"},null,{"$f":"IF(OR(TBL_KwiatyOrazDekoracje[[#This Row],[SZACOWANE]]=\"\",TBL_KwiatyOrazDekoracje[[#This Row],[RZECZYWISTE]]=\"\"),\"\",TBL_KwiatyOrazDekoracje[[#This Row],[SZACOWANE]]-TBL_KwiatyOrazDekoracje[[#This Row],[RZECZYWISTE]])","v":""}]
[null,"Kwiaty i koszyk dziewczynek rozsypujących kwiaty",{"v":500,"d":"500.00 zł"},null,{"$f":"IF(OR(TBL_KwiatyOrazDekoracje[[#This Row],[SZACOWANE]]=\"\",TBL_KwiatyOrazDekoracje[[#This Row],[RZECZYWISTE]]=\"\"),\"\",TBL_KwiatyOrazDekoracje[[#This Row],[SZACOWANE]]-TBL_KwiatyOrazDekoracje[[#This Row],[RZECZYWISTE]])","v":""}]
[null,"Poduszka pod obrączkę",{"v":100,"d":"100.00 zł"},null,{"$f":"IF(OR(TBL_KwiatyOrazDekoracje[[#This Row],[SZACOWANE]]=\"\",TBL_KwiatyOrazDekoracje[[#This Row],[RZECZYWISTE]]=\"\"),\"\",TBL_KwiatyOrazDekoracje[[#This Row],[SZACOWANE]]-TBL_KwiatyOrazDekoracje[[#This Row],[RZECZYWISTE]])","v":""}]
[null,"Bukiety",{"v":500,"d":"500.00 zł"},null,{"$f":"IF(OR(TBL_KwiatyOrazDekoracje[[#This Row],[SZACOWANE]]=\"\",TBL_KwiatyOrazDekoracje[[#This Row],[RZECZYWISTE]]=\"\"),\"\",TBL_KwiatyOrazDekoracje[[#This Row],[SZACOWANE]]-TBL_KwiatyOrazDekoracje[[#This Row],[RZECZYWISTE]])","v":""}]
[null,"Butonierki",{"v":100,"d":"100.00 zł"},null,{"$f":"IF(OR(TBL_KwiatyOrazDekoracje[[#This Row],[SZACOWANE]]=\"\",TBL_KwiatyOrazDekoracje[[#This Row],[RZECZYWISTE]]=\"\"),\"\",TBL_KwiatyOrazDekoracje[[#This Row],[SZACOWANE]]-TBL_KwiatyOrazDekoracje[[#This Row],[RZECZYWISTE]])","v":""}]
[null,"Bukieciki do sukienek",{"v":200,"d":"200.00 zł"},null,{"$f":"IF(OR(TBL_KwiatyOrazDekoracje[[#This Row],[SZACOWANE]]=\"\",TBL_KwiatyOrazDekoracje[[#This Row],[RZECZYWISTE]]=\"\"),\"\",TBL_KwiatyOrazDekoracje[[#This Row],[SZACOWANE]]-TBL_KwiatyOrazDekoracje[[#This Row],[RZECZYWISTE]])","v":""}]
[null,"Dekoracje na przyjęcie",{"v":300,"d":"300.00 zł"},null,{"$f":"IF(OR(TBL_KwiatyOrazDekoracje[[#This Row],[SZACOWANE]]=\"\",TBL_KwiatyOrazDekoracje[[#This Row],[RZECZYWISTE]]=\"\"),\"\",TBL_KwiatyOrazDekoracje[[#This Row],[SZACOWANE]]-TBL_KwiatyOrazDekoracje[[#This Row],[RZECZYWISTE]])","v":""}]
[null,"Oświetlenie",{"v":200,"d":"200.00 zł"},null,{"$f":"IF(OR(TBL_KwiatyOrazDekoracje[[#This Row],[SZACOWANE]]=\"\",TBL_KwiatyOrazDekoracje[[#This Row],[RZECZYWISTE]]=\"\"),\"\",TBL_KwiatyOrazDekoracje[[#This Row],[SZACOWANE]]-TBL_KwiatyOrazDekoracje[[#This Row],[RZECZYWISTE]])","v":""}]
[null,"Opłaty różne",{"v":100,"d":"100.00 zł"},null,{"$f":"IF(OR(TBL_KwiatyOrazDekoracje[[#This Row],[SZACOWANE]]=\"\",TBL_KwiatyOrazDekoracje[[#This Row],[RZECZYWISTE]]=\"\"),\"\",TBL_KwiatyOrazDekoracje[[#This Row],[SZACOWANE]]-TBL_KwiatyOrazDekoracje[[#This Row],[RZECZYWISTE]])","v":""}]
[null,"KWIATY I DEKORACJE ŁĄCZNIE",{"$f":"SUBTOTAL(109,TBL_KwiatyOrazDekoracje[SZACOWANE])","v":{"v":3000,"d":"3,000.00 zł"}},{"$f":"SUBTOTAL(109,TBL_KwiatyOrazDekoracje[RZECZYWISTE])","v":{"v":0,"d":"0.00 zł"}},{"$f":"TBL_KwiatyOrazDekoracje[[#Totals],[SZACOWANE]]-TBL_KwiatyOrazDekoracje[[#Totals],[RZECZYWISTE]]","v":{"v":3000,"d":"3,000.00 zł"}}]
[]
[]
[null,"MUZYKA","SZACOWANE","RZECZYWISTE","ODCHYLENIE"]
[null,"Muzycy na ceremonię",{"v":700,"d":"700.00 zł"},null,{"$f":"IF(OR(TBL_Muzyka[[#This Row],[SZACOWANE]]=\"\",TBL_Muzyka[[#This Row],[RZECZYWISTE]]=\"\"),\"\",TBL_Muzyka[[#This Row],[SZACOWANE]]-TBL_Muzyka[[#This Row],[RZECZYWISTE]])","v":""}]
[null,"Muzycy na czas koktajlu",{"v":300,"d":"300.00 zł"},null,{"$f":"IF(OR(TBL_Muzyka[[#This Row],[SZACOWANE]]=\"\",TBL_Muzyka[[#This Row],[RZECZYWISTE]]=\"\"),\"\",TBL_Muzyka[[#This Row],[SZACOWANE]]-TBL_Muzyka[[#This Row],[RZECZYWISTE]])","v":""}]
[null,"Zespół na przyjęcie, DJ lub rozrywka",{"v":200,"d":"200.00 zł"},null,{"$f":"IF(OR(TBL_Muzyka[[#This Row],[SZACOWANE]]=\"\",TBL_Muzyka[[#This Row],[RZECZYWISTE]]=\"\"),\"\",TBL_Muzyka[[#This Row],[SZACOWANE]]-TBL_Muzyka[[#This Row],[RZECZYWISTE]])","v":""}]
[null,"Wynajem systemu dźwiękowego lub parkietu",{"v":400,"d":"400.00 zł"},null,{"$f":"IF(OR(TBL_Muzyka[[#This Row],[SZACOWANE]]=\"\",TBL_Muzyka[[#This Row],[RZECZYWISTE]]=\"\"),\"\",TBL_Muzyka[[#This Row],[SZACOWANE]]-TBL_Muzyka[[#This Row],[RZECZYWISTE]])","v":""}]
[null,"Opłaty różne",{"v":200,"d":"200.00 zł"},null,{"$f":"IF(OR(TBL_Muzyka[[#This Row],[SZACOWANE]]=\"\",TBL_Muzyka[[#This Row],[RZECZYWISTE]]=\"\"),\"\",TBL_Muzyka[[#This Row],[SZACOWANE]]-TBL_Muzyka[[#This Row],[RZECZYWISTE]])","v":""}]
[null,"MUZYKA ŁĄCZNIE",{"$f":"SUBTOTAL(109,TBL_Muzyka[SZACOWANE])","v":{"v":1800,"d":"1,800.00 zł"}},{"$f":"SUBTOTAL(109,TBL_Muzyka[RZECZYWISTE])","v":{"v":0,"d":"0.00 zł"}},{"$f":"TBL_Muzyka[[#Totals],[SZACOWANE]]-TBL_Muzyka[[#Totals],[RZECZYWISTE]]","v":{"v":1800,"d":"1,800.00 zł"}}]
[]
[]
[null,"FOTOGRAFIE ORAZ WIDEO","SZACOWANE","RZECZYWISTE","ODCHYLENIE"]
[null,"Fotografie",{"v":1000,"d":"1,000.00 zł"},null,{"$f":"IF(OR(TBL_FotografieOrazWideo[[#This Row],[SZACOWANE]]=\"\",TBL_FotografieOrazWideo[[#This Row],[RZECZYWISTE]]=\"\"),\"\",TBL_FotografieOrazWideo[[#This Row],[SZACOWANE]]-TBL_FotografieOrazWideo[[#This Row],[RZECZYWISTE]])","v":""}]
[null,"Rejestracja wideo",{"v":800,"d":"800.00 zł"},null,{"$f":"IF(OR(TBL_FotografieOrazWideo[[#This Row],[SZACOWANE]]=\"\",TBL_FotografieOrazWideo[[#This Row],[RZECZYWISTE]]=\"\"),\"\",TBL_FotografieOrazWideo[[#This Row],[SZACOWANE]]-TBL_FotografieOrazWideo[[#This Row],[RZECZYWISTE]])","v":""}]
[null,"Kolejne odbitki i albumy",{"v":500,"d":"500.00 zł"},null,{"$f":"IF(OR(TBL_FotografieOrazWideo[[#This Row],[SZACOWANE]]=\"\",TBL_FotografieOrazWideo[[#This Row],[RZECZYWISTE]]=\"\"),\"\",TBL_FotografieOrazWideo[[#This Row],[SZACOWANE]]-TBL_FotografieOrazWideo[[#This Row],[RZECZYWISTE]])","v":""}]
[null,"Opłaty różne",{"v":200,"d":"200.00 zł"},null,{"$f":"IF(OR(TBL_FotografieOrazWideo[[#This Row],[SZACOWANE]]=\"\",TBL_FotografieOrazWideo[[#This Row],[RZECZYWISTE]]=\"\"),\"\",TBL_FotografieOrazWideo[[#This Row],[SZACOWANE]]-TBL_FotografieOrazWideo[[#This Row],[RZECZYWISTE]])","v":""}]
[null,"ZDJĘCIA I FILMY ŁĄCZNIE",{"$f":"SUBTOTAL(109,TBL_FotografieOrazWideo[SZACOWANE])","v":{"v":2500,"d":"2,500.00 zł"}},{"$f":"SUBTOTAL(109,TBL_FotografieOrazWideo[RZECZYWISTE])","v":{"v":0,"d":"0.00 zł"}},{"$f":"TBL_FotografieOrazWideo[[#Totals],[SZACOWANE]]-TBL_FotografieOrazWideo[[#Totals],[RZECZYWISTE]]","v":{"v":2500,"d":"2,500.00 zł"}}]
[]
[]
[null,"UPOMINKI","SZACOWANE","RZECZYWISTE","ODCHYLENIE"]
[null,"Prezenty na powitanie",{"v":700,"d":"700.00 zł"},null,{"$f":"IF(OR(TBL_Upominki[[#This Row],[SZACOWANE]]=\"\",TBL_Upominki[[#This Row],[RZECZYWISTE]]=\"\"),\"\",TBL_Upominki[[#This Row],[SZACOWANE]]-TBL_Upominki[[#This Row],[RZECZYWISTE]])","v":""}]
[null,"Prezenty podczas przyjęcia",{"v":200,"d":"200.00 zł"},null,{"$f":"IF(OR(TBL_Upominki[[#This Row],[SZACOWANE]]=\"\",TBL_Upominki[[#This Row],[RZECZYWISTE]]=\"\"),\"\",TBL_Upominki[[#This Row],[SZACOWANE]]-TBL_Upominki[[#This Row],[RZECZYWISTE]])","v":""}]
[null,"Opłaty różne",{"v":200,"d":"200.00 zł"},null,{"$f":"IF(OR(TBL_Upominki[[#This Row],[SZACOWANE]]=\"\",TBL_Upominki[[#This Row],[RZECZYWISTE]]=\"\"),\"\",TBL_Upominki[[#This Row],[SZACOWANE]]-TBL_Upominki[[#This Row],[RZECZYWISTE]])","v":""}]
[null,"UPOMINKI I PREZENTY ŁĄCZNIE",{"$f":"SUBTOTAL(109,TBL_Upominki[SZACOWANE])","v":{"v":1100,"d":"1,100.00 zł"}},{"$f":"SUBTOTAL(109,TBL_Upominki[RZECZYWISTE])","v":{"v":0,"d":"0.00 zł"}},{"$f":"TBL_Upominki[[#Totals],[SZACOWANE]]-TBL_Upominki[[#Totals],[RZECZYWISTE]]","v":{"v":1100,"d":"1,100.00 zł"}}]
[]
[]
[null,"CEREMONIA ŚLUBNA","SZACOWANE","RZECZYWISTE","ODCHYLENIE"]
[null,"Opłata za lokalizację",{"v":500,"d":"500.00 zł"},null,{"$f":"IF(OR(TBL_CeremoniaŚlubna[[#This Row],[SZACOWANE]]=\"\",TBL_CeremoniaŚlubna[[#This Row],[RZECZYWISTE]]=\"\"),\"\",TBL_CeremoniaŚlubna[[#This Row],[SZACOWANE]]-TBL_CeremoniaŚlubna[[#This Row],[RZECZYWISTE]])","v":""}]
[null,"Opłata celebransa lub darowizna na kościół",{"v":200,"d":"200.00 zł"},null,{"$f":"IF(OR(TBL_CeremoniaŚlubna[[#This Row],[SZACOWANE]]=\"\",TBL_CeremoniaŚlubna[[#This Row],[RZECZYWISTE]]=\"\"),\"\",TBL_CeremoniaŚlubna[[#This Row],[SZACOWANE]]-TBL_CeremoniaŚlubna[[#This Row],[RZECZYWISTE]])","v":""}]
[null,"Opłaty różne",{"v":100,"d":"100.00 zł"},null,{"$f":"IF(OR(TBL_CeremoniaŚlubna[[#This Row],[SZACOWANE]]=\"\",TBL_CeremoniaŚlubna[[#This Row],[RZECZYWISTE]]=\"\"),\"\",TBL_CeremoniaŚlubna[[#This Row],[SZACOWANE]]-TBL_CeremoniaŚlubna[[#This Row],[RZECZYWISTE]])","v":""}]
[null,"CEREMONIA ŁĄCZNIE",{"$f":"SUBTOTAL(109,TBL_CeremoniaŚlubna[SZACOWANE])","v":{"v":800,"d":"800.00 zł"}},{"$f":"SUBTOTAL(109,TBL_CeremoniaŚlubna[RZECZYWISTE])","v":{"v":0,"d":"0.00 zł"}},{"$f":"TBL_CeremoniaŚlubna[[#Totals],[SZACOWANE]]-TBL_CeremoniaŚlubna[[#Totals],[RZECZYWISTE]]","v":{"v":800,"d":"800.00 zł"}}]
[]
[]
[null,"WYPOSAŻENIE BIURA","SZACOWANE","RZECZYWISTE","ODCHYLENIE"]
[null,"Zapisz datę — karty",{"v":50,"d":"50.00 zł"},null,{"$f":"IF(OR(TBL_Papeteria[[#This Row],[SZACOWANE]]=\"\",TBL_Papeteria[[#This Row],[RZECZYWISTE]]=\"\"),\"\",TBL_Papeteria[[#This Row],[SZACOWANE]]-TBL_Papeteria[[#This Row],[RZECZYWISTE]])","v":""}]
[null,"Zaproszenia i RSVP",{"v":100,"d":"100.00 zł"},null,{"$f":"IF(OR(TBL_Papeteria[[#This Row],[SZACOWANE]]=\"\",TBL_Papeteria[[#This Row],[RZECZYWISTE]]=\"\"),\"\",TBL_Papeteria[[#This Row],[SZACOWANE]]-TBL_Papeteria[[#This Row],[RZECZYWISTE]])","v":""}]
[null,"Programy",{"v":50,"d":"50.00 zł"},null,{"$f":"IF(OR(TBL_Papeteria[[#This Row],[SZACOWANE]]=\"\",TBL_Papeteria[[#This Row],[RZECZYWISTE]]=\"\"),\"\",TBL_Papeteria[[#This Row],[SZACOWANE]]-TBL_Papeteria[[#This Row],[RZECZYWISTE]])","v":""}]
[null,"Karty siedzeń i miejsc",{"v":50,"d":"50.00 zł"},null,{"$f":"IF(OR(TBL_Papeteria[[#This Row],[SZACOWANE]]=\"\",TBL_Papeteria[[#This Row],[RZECZYWISTE]]=\"\"),\"\",TBL_Papeteria[[#This Row],[SZACOWANE]]-TBL_Papeteria[[#This Row],[RZECZYWISTE]])","v":""}]
[null,"Karty menu",{"v":50,"d":"50.00 zł"},null,{"$f":"IF(OR(TBL_Papeteria[[#This Row],[SZACOWANE]]=\"\",TBL_Papeteria[[#This Row],[RZECZYWISTE]]=\"\"),\"\",TBL_Papeteria[[#This Row],[SZACOWANE]]-TBL_Papeteria[[#This Row],[RZECZYWISTE]])","v":""}]
[null,"Podziękowania — notatki",{"v":50,"d":"50.00 zł"},null,{"$f":"IF(OR(TBL_Papeteria[[#This Row],[SZACOWANE]]=\"\",TBL_Papeteria[[#This Row],[RZECZYWISTE]]=\"\"),\"\",TBL_Papeteria[[#This Row],[SZACOWANE]]-TBL_Papeteria[[#This Row],[RZECZYWISTE]])","v":""}]
[null,"Opłaty pocztowe",{"v":50,"d":"50.00 zł"},null,{"$f":"IF(OR(TBL_Papeteria[[#This Row],[SZACOWANE]]=\"\",TBL_Papeteria[[#This Row],[RZECZYWISTE]]=\"\"),\"\",TBL_Papeteria[[#This Row],[SZACOWANE]]-TBL_Papeteria[[#This Row],[RZECZYWISTE]])","v":""}]
[null,"Opłaty różne",{"v":100,"d":"100.00 zł"},null,{"$f":"IF(OR(TBL_Papeteria[[#This Row],[SZACOWANE]]=\"\",TBL_Papeteria[[#This Row],[RZECZYWISTE]]=\"\"),\"\",TBL_Papeteria[[#This Row],[SZACOWANE]]-TBL_Papeteria[[#This Row],[RZECZYWISTE]])","v":""}]
[null,"PAPETERIA ŁĄCZNIE",{"$f":"SUBTOTAL(109,TBL_Papeteria[SZACOWANE])","v":{"v":500,"d":"500.00 zł"}},{"$f":"SUBTOTAL(109,TBL_Papeteria[RZECZYWISTE])","v":{"v":0,"d":"0.00 zł"}},{"$f":"TBL_Papeteria[[#Totals],[SZACOWANE]]-TBL_Papeteria[[#Totals],[RZECZYWISTE]]","v":{"v":500,"d":"500.00 zł"}}]
[]
[]
[null,"OBRĄCZKI ŚLUBNE","SZACOWANE","RZECZYWISTE","ODCHYLENIE"]
[null,"Obrączki ślubne",{"v":1000,"d":"1,000.00 zł"},null,{"$f":"IF(OR(TBL_Obrączki[[#This Row],[SZACOWANE]]=\"\",TBL_Obrączki[[#This Row],[RZECZYWISTE]]=\"\"),\"\",TBL_Obrączki[[#This Row],[SZACOWANE]]-TBL_Obrączki[[#This Row],[RZECZYWISTE]])","v":""}]
[null,"Akcesoria obrączek",{"v":100,"d":"100.00 zł"},null,{"$f":"IF(OR(TBL_Obrączki[[#This Row],[SZACOWANE]]=\"\",TBL_Obrączki[[#This Row],[RZECZYWISTE]]=\"\"),\"\",TBL_Obrączki[[#This Row],[SZACOWANE]]-TBL_Obrączki[[#This Row],[RZECZYWISTE]])","v":""}]
[null,"OBRĄCZKI ŁĄCZNIE",{"$f":"SUBTOTAL(109,TBL_Obrączki[SZACOWANE])","v":{"v":1100,"d":"1,100.00 zł"}},{"$f":"SUBTOTAL(109,TBL_Obrączki[RZECZYWISTE])","v":{"v":0,"d":"0.00 zł"}},{"$f":"TBL_Obrączki[[#Totals],[SZACOWANE]]-TBL_Obrączki[[#Totals],[RZECZYWISTE]]","v":{"v":1100,"d":"1,100.00 zł"}}]
[]
[]
[null,"TRANSPORT  ","SZACOWANE","RZECZYWISTE","ODCHYLENIE"]
[null,"Wynajem głównego samochodu",{"v":100,"d":"100.00 zł"},null,{"$f":"IF(OR(TBL_Transport[[#This Row],[SZACOWANE]]=\"\",TBL_Transport[[#This Row],[RZECZYWISTE]]=\"\"),\"\",TBL_Transport[[#This Row],[SZACOWANE]]-TBL_Transport[[#This Row],[RZECZYWISTE]])","v":""}]
[null,"Wynajem samochodu dla gości",{"v":100,"d":"100.00 zł"},null,{"$f":"IF(OR(TBL_Transport[[#This Row],[SZACOWANE]]=\"\",TBL_Transport[[#This Row],[RZECZYWISTE]]=\"\"),\"\",TBL_Transport[[#This Row],[SZACOWANE]]-TBL_Transport[[#This Row],[RZECZYWISTE]])","v":""}]
[null,"Transport dla gości zamiejscowych",{"v":100,"d":"100.00 zł"},null,{"$f":"IF(OR(TBL_Transport[[#This Row],[SZACOWANE]]=\"\",TBL_Transport[[#This Row],[RZECZYWISTE]]=\"\"),\"\",TBL_Transport[[#This Row],[SZACOWANE]]-TBL_Transport[[#This Row],[RZECZYWISTE]])","v":""}]
[null,"Parkingowy",{"v":50,"d":"50.00 zł"},null,{"$f":"IF(OR(TBL_Transport[[#This Row],[SZACOWANE]]=\"\",TBL_Transport[[#This Row],[RZECZYWISTE]]=\"\"),\"\",TBL_Transport[[#This Row],[SZACOWANE]]-TBL_Transport[[#This Row],[RZECZYWISTE]])","v":""}]
[null,"Opłaty różne",{"v":100,"d":"100.00 zł"},null,{"$f":"IF(OR(TBL_Transport[[#This Row],[SZACOWANE]]=\"\",TBL_Transport[[#This Row],[RZECZYWISTE]]=\"\"),\"\",TBL_Transport[[#This Row],[SZACOWANE]]-TBL_Transport[[#This Row],[RZECZYWISTE]])","v":""}]
[null,"PRZEJAZDY ŁĄCZNIE",{"$f":"SUBTOTAL(109,TBL_Transport[SZACOWANE])","v":{"v":450,"d":"450.00 zł"}},{"$f":"SUBTOTAL(109,TBL_Transport[RZECZYWISTE])","v":{"v":0,"d":"0.00 zł"}},{"$f":"TBL_Transport[[#Totals],[SZACOWANE]]-TBL_Transport[[#Totals],[RZECZYWISTE]]","v":{"v":450,"d":"450.00 zł"}}]